bitfinex-derivatives/quotes_SOLF0:USTF0_20260208
["timestamp","ask_amount","ask_price","bid_price","bid_amount"]
[1770582484623,72.9651781,87.339,87.29,74.64889664]
[1770582486417,72.9651781,87.339,87.29,78.00264964]
[1770582487220,3.353753,87.33,87.277,74.64889664]
[1770582487519,72.9651781,87.319,87.26,3.353753]
[1770582487723,72.9651781,87.309,87.257,74.64889664]
[1770582488626,72.9651781,87.305,87.257,74.64889664]
[1770582489323,76.3189311,87.3,87.257,74.64889664]
[1770582490826,76.3189311,87.3,87.245,74.64889664]
[1770582492529,76.3189311,87.29,87.245,74.64889664]
[1770582493026,72.9651781,87.29,87.245,74.64889664]
[1770582493529,76.3189311,87.29,87.245,74.64889664]
[1770582495120,72.9651781,87.29,87.245,74.64889664]
[1770582496527,76.3189311,87.29,87.245,74.64889664]
[1770582496722,72.9651781,87.29,87.245,74.64889664]
[1770582498226,69.58138831,87.269,87.22,73.84447862]
[1770582498525,69.58138831,87.269,87.23,3.353753]
[1770582498728,69.58138831,87.282,87.24,77.19823162]
[1770582498929,160.3812,87.352,87.25,3.353753]
[1770582498930,69.58138831,87.294,87.25,3.353753]
[1770582499231,69.58138831,87.294,87.24,73.84447862]
[1770582499532,69.58138831,87.294,87.24,77.19823162]
[1770582500331,69.58138831,87.294,87.24,73.84447862]
[1770582500534,69.58138831,87.294,87.24,77.19823162]
[1770582501932,69.58138831,87.294,87.25,3.353753]
[1770582502233,69.58138831,87.294,87.24,77.19823162]
[1770582503536,69.58138831,87.294,87.25,3.353753]
[1770582504939,69.58138831,87.309,87.25,77.19823162]
[1770582507841,79.89668831,87.309,87.25,73.84447862]
[1770582508034,69.58138831,87.29,87.241,73.84447862]
[1770582509043,69.58138831,87.309,87.25,77.19823162]
[1770582510043,69.58138831,87.309,87.25,73.84447862]
[1770582510341,79.89658831,87.309,87.25,77.19823162]
[1770582511536,69.58138831,87.299,87.24,3.353753]
[1770582511738,69.58138831,87.289,87.24,3.353753]
[1770582511940,69.58138831,87.289,87.241,73.84447862]
[1770582514740,69.58138831,87.289,87.216,24.0]
[1770582514741,69.58138831,87.289,87.217,73.84447862]
[1770582514940,69.58138831,87.289,87.231,73.84447862]
[1770582515141,69.58138831,87.289,87.24,3.353753]
[1770582515342,69.58138831,87.286,87.231,73.84447862]
[1770582515546,69.58138831,87.279,87.231,73.84447862]
[1770582517547,69.58138831,87.277,87.231,73.84447862]
[1770582519153,79.90108831,87.272,87.231,73.84447862]
[1770582519452,79.90108831,87.272,87.22,3.36308922]
[1770582519652,3.36308922,87.27,87.22,3.36308922]
[1770582519853,69.58138831,87.269,87.22,3.36308922]
[1770582520752,69.58138831,87.269,87.221,73.84447862]
[1770582520948,10.3205,87.264,87.221,73.84447862]
[1770582521154,69.58138831,87.263,87.221,73.84447862]
[1770582521350,69.58138831,87.263,87.21,77.20756784]
[1770582521548,69.58138831,87.263,87.22,3.36308922]
[1770582521746,69.58138831,87.261,87.195,73.84447862]
[1770582521950,69.58138831,87.249,87.195,73.84447862]
[1770582522355,3.36308922,87.24,87.195,73.84447862]
[1770582522551,69.58138831,87.229,87.148,73.84447862]
[1770582522855,69.58138831,87.209,87.17,3.36308922]
[1770582523154,69.58138831,87.209,87.161,73.84447862]
[1770582523752,69.58138831,87.209,87.134,1.99583055]
[1770582523753,69.58138831,87.237,87.19,3.36308922]
[1770582524251,69.58138831,87.237,87.171,73.84447862]
[1770582524455,69.58138831,87.299,87.22,3.36308922]
[1770582524656,69.58138831,87.279,87.22,3.36308922]
[1770582524858,73.41429721,87.256,87.22,3.36308922]
[1770582525752,73.41429721,87.256,87.19,73.84447862]
[1770582525952,73.41429721,87.256,87.21,3.36308922]
[1770582526155,3.36308922,87.27,87.21,3.36308922]
[1770582526156,73.41429721,87.252,87.21,3.36308922]
[1770582526562,73.41429721,87.252,87.2,3.36308922]
[1770582526752,10.322,87.251,87.21,3.36308922]
[1770582526953,73.41429721,87.25,87.21,3.36308922]
[1770582528061,73.41429721,87.25,87.22,3.36308922]
[1770582528460,76.77738643,87.25,87.19,77.20756784]
[1770582528659,73.41429721,87.25,87.21,3.36308922]
[1770582528860,76.77738643,87.25,87.19,3.36308922]
[1770582529059,73.41429721,87.239,87.19,3.36308922]
[1770582529662,73.41429721,87.239,87.175,75.68083525]
[1770582529863,73.41429721,87.239,87.191,75.68083525]
[1770582530868,73.41429721,87.255,87.21,3.36308922]
[1770582531069,73.41429721,87.255,87.201,75.68083525]
[1770582532774,73.41429721,87.279,87.221,75.68083525]
[1770582534171,73.41429721,87.279,87.23,79.04392447]
[1770582534370,169.33737274,87.347,87.23,79.04392447]
[1770582534371,73.41429721,87.293,87.24,3.36308922]
[1770582534960,73.41429721,87.293,87.25,3.36308922]
[1770582535368,73.41429721,87.293,87.241,75.68083525]
[1770582537473,73.41429721,87.291,87.241,75.68083525]
[1770582537670,73.41429721,87.289,87.241,75.68083525]
[1770582540276,73.41429721,87.287,87.23,3.36308922]
[1770582540676,10.3183,87.283,87.23,79.04392447]
[1770582540975,10.3183,87.283,87.24,3.36308922]
[1770582542574,10.3183,87.283,87.24,79.04392447]
[1770582543074,83.73259721,87.283,87.24,79.04392447]
[1770582543880,10.3171,87.293,87.24,79.04392447]
[1770582544175,83.73139721,87.293,87.24,3.36308922]
[1770582544379,73.41429721,87.293,87.24,3.36308922]
[1770582544576,10.3184,87.282,87.24,3.36308922]
[1770582544977,10.3184,87.282,87.24,79.04392447]
[1770582547281,83.73269721,87.282,87.24,79.04392447]
[1770582547582,83.73269721,87.282,87.24,3.36308922]
[1770582549278,73.41429721,87.282,87.227,75.68083525]
[1770582549587,73.41429721,87.269,87.22,3.36308922]
[1770582549782,73.41429721,87.269,87.214,75.68083525]
[1770582550383,73.41429721,87.283,87.23,3.36308922]
[1770582550585,73.41429721,87.283,87.24,79.04392447]
[1770582551189,10.3174,87.29,87.251,75.68083525]
[1770582552586,73.41429721,87.299,87.251,75.68083525]
[1770582552790,73.41429721,87.319,87.26,79.04392447]
[1770582553790,73.41429721,87.312,87.26,79.04392447]
[1770582554496,10.3135,87.324,87.271,75.68083525]
[1770582554789,83.72779721,87.324,87.28,3.36308922]
[1770582556895,83.72779721,87.324,87.28,79.83774865]
[1770582556896,73.41429721,87.324,87.28,79.83774865]
[1770582557791,73.41429721,87.324,87.29,3.36308922]
[1770582558092,73.41429721,87.324,87.28,79.83774865]
[1770582558486,74.16066328,87.348,87.301,76.47465943]
[1770582560598,20.6086,87.402,87.301,76.47465943]
[1770582560599,74.16066328,87.346,87.301,76.47465943]
[1770582561798,74.16066328,87.343,87.301,76.47465943]
[1770582564601,10.3113,87.342,87.301,76.47465943]
[1770582566000,84.47196328,87.342,87.291,76.47465943]
[1770582566293,74.16066328,87.333,87.29,3.36308922]
[1770582566503,74.16066328,87.319,87.261,76.47465943]
[1770582566903,74.16066328,87.319,87.271,76.47465943]
[1770582567101,74.16066328,87.329,87.271,76.47465943]
[1770582567301,74.16066328,87.329,87.281,76.47465943]
[1770582567603,74.16066328,87.342,87.29,79.83774865]
[1770582568505,74.16066328,87.339,87.29,76.47465943]
[1770582568699,10.3125,87.332,87.29,76.47465943]
[1770582569505,74.16066328,87.324,87.274,76.47465943]
[1770582570004,74.16066328,87.319,87.274,76.47465943]
[1770582570393,74.16066328,87.299,87.241,76.47465943]
[1770582571808,10.3167,87.297,87.241,76.47465943]
[1770582572607,84.47736328,87.297,87.241,76.47465943]
[1770582577606,84.47736328,87.297,87.241,100.47465943]
[1770582577806,84.47736328,87.297,87.242,76.47465943]
[1770582578305,10.3178,87.288,87.242,76.47465943]
[1770582580609,74.16066328,87.297,87.242,76.47465943]
[1770582581001,74.16066328,87.297,87.243,76.47465943]
[1770582581810,74.16066328,87.321,87.243,76.47465943]
[1770582586812,74.16066328,87.321,87.245,70.73078796]
[1770582592013,9.0034945,87.35,87.251,70.73078796]
[1770582592211,69.92458152,87.349,87.253,70.73078796]
[1770582592913,69.92458152,87.329,87.271,70.73078796]
[1770582593310,69.92458152,87.329,87.281,70.73078796]
[1770582593619,69.92458152,87.342,87.291,70.73078796]
[1770582594119,69.92458152,87.342,87.301,70.73078796]
[1770582595311,69.92458152,87.339,87.29,3.35960402]
[1770582595517,69.92458152,87.339,87.288,70.73078796]
[1770582596829,69.92458152,87.339,87.291,70.73078796]
[1770582597524,3.35960402,87.33,87.291,70.73078796]
[1770582597828,73.28418554,87.33,87.291,70.73078796]
[1770582598328,3.35960402,87.34,87.291,70.73078796]
[1770582598523,69.92458152,87.342,87.291,70.73078796]
[1770582599118,69.92458152,87.342,87.3,3.35960402]
[1770582599320,69.92458152,87.342,87.301,70.73078796]
[1770582599630,69.92458152,87.356,87.301,70.73078796]
[1770582600231,69.92458152,87.354,87.301,70.73078796]
[1770582600436,69.92458152,87.339,87.28,3.35960402]
[1770582600731,69.92458152,87.329,87.28,74.09039198]
[1770582600926,69.92458152,87.361,87.28,74.09039198]
[1770582601125,69.92458152,87.339,87.29,3.35960402]
[1770582601330,69.92458152,87.339,87.28,74.09039198]
[1770582601532,69.92458152,87.352,87.301,70.73078796]
[1770582601931,69.92458152,87.349,87.29,74.09039198]
[1770582602734,80.23508152,87.349,87.29,74.09039198]
[1770582603531,69.92458152,87.319,87.264,70.73078796]
[1770582603725,69.92458152,87.309,87.264,70.73078796]
[1770582604127,10.3155,87.307,87.264,70.73078796]
[1770582604327,69.92458152,87.299,87.24,3.35960402]
[1770582604634,69.92458152,87.289,87.241,70.73078796]
[1770582610135,69.92458152,87.302,87.25,74.09039198]
[1770582611241,69.92458152,87.315,87.271,70.73078796]
[1770582615751,10.3129,87.328,87.271,70.73078796]
[1770582615938,8.99998279,87.32,87.242,69.65825702]
[1770582616142,68.65819811,87.319,87.242,69.65825702]
[1770582617846,68.65819811,87.308,87.242,69.65825702]
[1770582619248,68.65819811,87.3,87.242,69.65825702]
[1770582620746,68.65819811,87.298,87.242,69.65825702]
[1770582621445,68.65819811,87.296,87.242,69.65825702]
[1770582622442,68.65819811,87.291,87.242,69.65825702]
[1770582625751,10.316,87.302,87.242,69.65825702]
[1770582626051,78.97419811,87.302,87.242,69.65825702]
[1770582630853,78.97419811,87.302,87.23,8.99998279]
[1770582630854,68.65819811,87.314,87.245,69.65825702]
[1770582631057,68.65819811,87.314,87.251,69.65825702]
[1770582631658,68.65819811,87.325,87.256,69.65825702]
[1770582632856,68.65819811,87.325,87.271,69.65825702]
[1770582636348,68.65819811,87.319,87.271,69.65825702]
[1770582636953,78.97229811,87.319,87.271,69.65825702]
[1770582637760,78.97229811,87.319,87.26,3.36004655]
[1770582638460,78.97229811,87.319,87.261,69.65825702]
[1770582639757,68.65819811,87.309,87.248,69.65825702]
[1770582640060,68.65819811,87.309,87.176,160.7035]
[1770582640061,68.65819811,87.299,87.24,3.36004655]
[1770582640252,3.36004655,87.3,87.24,3.36004655]
[1770582640253,68.65819811,87.289,87.24,3.36004655]
[1770582640755,68.65819811,87.289,87.236,69.65825702]
[1770582641154,68.65819811,87.289,87.24,3.36004655]
[1770582642056,68.65819811,87.315,87.26,3.36004655]
[1770582643550,68.65819811,87.309,87.261,69.65825702]
[1770582643751,68.65819811,87.319,87.261,69.65825702]
[1770582644557,68.65819811,87.319,87.27,73.01830357]
[1770582645659,68.65819811,87.319,87.27,69.65825702]
[1770582647460,73.37338283,87.334,87.281,67.95365005]
[1770582647759,3.36004655,87.33,87.281,67.95365005]
[1770582647959,73.37338283,87.329,87.281,67.95365005]
[1770582650951,73.37338283,87.319,87.26,3.36004655]
[1770582651159,73.37338283,87.309,87.254,24.0]
[1770582651458,73.37338283,87.309,87.261,67.95365005]
[1770582654465,73.37338283,87.322,87.271,67.95365005]
[1770582660966,73.37338283,87.322,87.28,3.36004655]
[1770582661268,73.37338283,87.322,87.28,71.3136966]
[1770582662768,73.37338283,87.322,87.28,67.95365005]
[1770582666669,73.37338283,87.339,87.28,71.3136966]
[1770582668670,73.37338283,87.329,87.28,67.95365005]
[1770582668870,73.37338283,87.329,87.27,71.3136966]
[1770582678573,68.62050304,87.327,87.27,71.3136966]
[1770582679669,10.3134,87.325,87.27,71.3136966]
[1770582679876,68.62050304,87.324,87.27,71.3136966]
[1770582683577,68.62050304,87.322,87.27,71.3136966]
[1770582684578,10.3138,87.321,87.27,71.3136966]
[1770582684780,68.62050304,87.32,87.27,71.3136966]
[1770582686570,10.314,87.319,87.27,71.3136966]
[1770582689678,68.62050304,87.32,87.27,71.3136966]
[1770582690783,68.62050304,87.32,87.281,73.23236416]
[1770582693483,68.62050304,87.349,87.291,73.23236416]
[1770582693787,68.62050304,87.349,87.3,76.59241071]
[1770582695789,68.62050304,87.349,87.222,160.6177]
[1770582695790,68.62050304,87.36,87.311,73.23236416]
[1770582697688,68.62050304,87.36,87.321,73.23236416]
[1770582701594,68.62050304,87.36,87.31,76.58891201]
[1770582703195,71.97705089,87.36,87.31,76.58891201]
[1770582704491,68.62050304,87.36,87.31,76.58891201]
[1770582707398,70.24967599,87.395,87.351,72.33264114]
[1770582707600,70.24967599,87.395,87.36,3.35654785]
[1770582707797,70.24967599,87.395,87.351,72.33264114]
[1770582708002,70.24967599,87.395,87.34,75.68918899]
[1770582709996,70.24967599,87.395,87.351,72.33264114]
[1770582716807,70.24967599,87.395,87.34,75.68918899]
[1770582718413,70.24967599,87.389,87.34,72.33264114]
[1770582718713,1.9914391,87.464,87.328,72.33264114]
[1770582718714,70.24967599,87.379,87.328,72.33264114]
[1770582718907,70.24967599,87.369,87.316,72.33264114]
[1770582720512,70.24967599,87.359,87.316,72.33264114]
[1770582720711,70.24967599,87.359,87.301,72.33264114]
[1770582721114,70.24967599,87.349,87.301,72.33264114]
[1770582722215,70.24967599,87.349,87.29,75.68918899]
[1770582723212,70.24967599,87.361,87.311,72.33264114]
[1770582724116,70.24967599,87.359,87.311,72.33264114]
[1770582724912,70.24967599,87.349,87.3,3.35654785]
[1770582725216,70.24967599,87.349,87.298,72.33264114]
[1770582725514,70.24967599,87.347,87.29,3.35654785]
[1770582725718,70.24967599,87.339,87.284,72.33264114]
[1770582728927,70.24967599,87.329,87.284,72.33264114]
[1770582730824,3.35654785,87.34,87.284,72.33264114]
[1770582731025,73.60622384,87.34,87.284,72.33264114]
[1770582736128,70.24967599,87.34,87.291,70.492537]
[1770582736330,70.24967599,87.34,87.301,70.492537]
[1770582739338,67.40176404,87.356,87.301,70.492537]
[1770582739533,67.40176404,87.365,87.321,70.492537]
[1770582746130,67.40176404,87.349,87.301,70.492537]
[1770582746336,67.40176404,87.329,87.287,70.492537]
[1770582746540,67.40176404,87.339,87.287,70.492537]
[1770582746739,67.40176404,87.339,87.291,70.492537]
[1770582747638,3.35654785,87.35,87.291,70.492537]
[1770582747845,67.40176404,87.349,87.301,70.492537]
[1770582752443,67.40176404,87.362,87.311,70.492537]
[1770582754441,67.40176404,87.359,87.311,70.492537]
[1770582756253,67.40176404,87.359,87.32,73.84908485]
[1770582756446,3.35654785,87.37,87.32,73.84908485]
[1770582756946,67.40176404,87.369,87.32,73.84908485]
[1770582758856,67.40176404,87.369,87.32,73.84878582]
[1770582759248,67.40176404,87.381,87.331,70.492537]
[1770582762653,67.40176404,87.379,87.32,3.35624882]
[1770582762854,307.51252678,87.408,87.306,70.492537]
[1770582762855,67.40176404,87.359,87.306,70.492537]
[1770582763148,67.40176404,87.359,87.31,3.35624882]
[1770582763347,67.40176404,87.359,87.311,70.492537]
[1770582768457,67.40176404,87.359,87.32,3.35624882]
[1770582768951,67.40176404,87.359,87.32,71.51052754]
[1770582770259,10.3082,87.368,87.32,71.51052754]
[1770582770456,71.9953724,87.371,87.331,68.15427872]
[1770582773154,71.9953724,87.383,87.34,3.35624882]
[1770582773454,71.9953724,87.383,87.34,71.51052754]
[1770582773663,10.3052,87.394,87.35,71.51052754]
[1770582773851,71.9953724,87.396,87.35,71.51052754]
[1770582774244,71.9953724,87.406,87.361,68.15427872]
[1770582774844,71.9953724,87.406,87.308,34.38]
[1770582774845,71.9953724,87.424,87.371,68.15427872]
[1770582775045,71.9953724,87.422,87.371,68.15427872]
[1770582775244,71.9953724,87.42,87.371,68.15427872]
[1770582778862,75.35162122,87.42,87.371,68.15427872]
[1770582780364,75.35162122,87.42,87.37,3.35624882]
[1770582780561,3.35624882,87.41,87.36,3.35624882]
[1770582780760,71.9953724,87.409,87.36,3.35624882]
[1770582781961,71.9953724,87.433,87.39,3.35624882]
[1770582782262,71.9953724,87.433,87.327,28.63003056]
[1770582782263,82.2964724,87.429,87.37,3.35624882]
[1770582782463,71.9953724,87.419,87.364,68.15427872]
[1770582782652,71.9953724,87.417,87.364,68.15427872]
[1770582782852,71.9953724,87.415,87.364,68.15427872]
[1770582783053,71.9953724,87.413,87.364,68.15427872]
[1770582783564,71.9953724,87.409,87.364,68.15427872]
[1770582783766,71.9953724,87.407,87.364,68.15427872]
[1770582787368,71.9953724,87.407,87.37,3.35624882]
[1770582788674,71.9953724,87.407,87.371,68.15427872]
[1770582789871,71.9953724,87.42,87.371,68.15427872]
[1770582790068,71.9953724,87.42,87.381,68.15427872]
[1770582792565,75.35162122,87.42,87.36,3.35624882]
[1770582794773,71.9953724,87.409,87.36,3.35624882]
[1770582794975,71.9953724,87.409,87.359,10.3093]
[1770582795168,71.44341289,87.399,87.349,10.3104]
[1770582796378,71.44341289,87.399,87.36,3.35624882]
[1770582797283,68.65836718,87.412,87.361,70.25611571]
[1770582801083,68.65836718,87.429,87.371,70.25611571]
[1770582802576,68.65836718,87.429,87.38,73.61236453]
[1770582807681,68.65836718,87.447,87.39,73.61236453]
[1770582807877,68.65836718,87.447,87.401,70.25611571]
[1770582810183,68.65836718,87.447,87.358,439.86078802]
[1770582810184,8.9179665,87.459,87.411,70.25611571]
[1770582810382,8.9179665,87.458,87.411,70.25611571]
[1770582810579,68.65836718,87.466,87.411,70.25611571]
[1770582810882,10.72798522,87.482,87.369,52.63003056]
[1770582810883,68.65836718,87.464,87.42,73.61236453]
[1770582813692,68.65836718,87.464,87.359,24.0]
[1770582813693,68.65836718,87.439,87.38,3.35624882]
[1770582813896,14.31501528,87.489,87.38,3.35624882]
[1770582813897,68.65836718,87.429,87.38,3.35624882]
[1770582814094,68.65836718,87.429,87.377,10.3071]
[1770582814295,68.65836718,87.429,87.376,70.25611571]
[1770582815494,68.65836718,87.429,87.381,70.25611571]
[1770582817801,68.65836718,87.429,87.39,3.35624882]
[1770582818995,68.65836718,87.429,87.39,73.60691266]
[1770582819188,68.65836718,87.443,87.39,73.60691266]
[1770582819389,68.65836718,87.443,87.4,73.60691266]
[1770582820695,68.65836718,87.443,87.4,83.91121266]
[1770582821703,68.65836718,87.459,87.4,83.91121266]
[1770582822010,68.65836718,87.459,87.41,73.60691266]
[1770582822603,68.65836718,87.459,87.412,70.25611571]
[1770582824511,68.65836718,87.459,87.42,3.35079695]
[1770582824910,71.36077791,87.479,87.43,3.35079695]
[1770582825110,71.36077791,87.479,87.43,69.21819521]
[1770582827811,71.36077791,87.492,87.441,65.86739826]
[1770582829513,71.36077791,87.479,87.421,10.3019]
[1770582829916,71.36077791,87.479,87.421,76.16929826]
[1770582830115,71.36077791,87.479,87.43,3.35079695]
[1770582830317,71.36077791,87.479,87.43,69.21819521]
[1770582832715,71.36077791,87.479,87.43,3.35079695]
[1770582833215,71.36077791,87.479,87.42,69.21819521]
[1770582833407,71.36077791,87.479,87.43,3.35079695]
[1770582833610,71.36077791,87.479,87.43,69.21819521]
[1770582834519,71.36077791,87.479,87.44,3.35079695]
[1770582835314,71.36077791,87.499,87.44,69.21819521]
[1770582835511,71.36077791,87.499,87.45,3.35079695]
[1770582836019,71.36077791,87.489,87.43,3.35079695]
[1770582836820,71.36077791,87.489,87.43,69.21819521]
[1770582839518,71.36077791,87.489,87.44,3.35079695]
[1770582840220,71.36077791,87.489,87.43,69.21819521]
[1770582840712,71.36077791,87.489,87.44,3.35079695]
[1770582840917,301.09099297,87.508,87.39,34.36]
[1770582840918,71.36077791,87.506,87.451,65.86739826]
[1770582841818,71.36077791,87.499,87.425,65.86739826]
[1770582842024,71.36077791,87.489,87.43,69.21819521]
[1770582847632,71.36077791,87.487,87.43,69.21819521]
[1770582849833,71.36077791,87.485,87.43,69.21819521]
[1770582850229,71.36077791,87.485,87.44,3.35079695]
[1770582851935,71.36077791,87.479,87.43,65.86739826]
[1770582853230,71.36077791,87.479,87.43,69.21819521]
[1770582854831,81.65597791,87.479,87.43,65.86739826]
[1770582855939,71.36077791,87.479,87.43,65.86739826]
[1770582859529,71.36077791,87.479,87.43,69.21819521]
[1770582864638,71.36077791,87.479,87.441,68.37610433]
[1770582865439,66.77197192,87.492,87.441,68.37610433]
[1770582865644,66.77197192,87.492,87.45,71.72690128]
[1770582866339,66.77197192,87.492,87.406,28.63003056]
[1770582866340,66.77197192,87.469,87.422,68.37610433]
[1770582866538,66.77197192,87.469,87.41,71.72690128]
[1770582867346,10.68304746,87.498,87.41,71.72690128]
[1770582867347,66.77197192,87.459,87.41,68.37610433]
[1770582868247,66.77197192,87.459,87.41,71.72690128]
[1770582868850,66.77197192,87.459,87.41,68.37610433]
[1770582869051,66.77197192,87.459,87.41,71.72690128]
[1770582869952,66.77197192,87.459,87.41,68.37610433]
[1770582870750,66.77197192,87.449,87.4,3.35079695]
[1770582870954,66.77197192,87.439,87.384,68.37610433]
[1770582871660,66.77197192,87.429,87.371,68.37610433]
[1770582871955,14.31501528,87.487,87.371,68.37610433]
[1770582871956,66.77197192,87.454,87.371,68.37610433]
[1770582872159,28.63003056,87.51,87.358,450.17018802]
[1770582872160,66.77197192,87.439,87.38,71.72690128]
[1770582872459,66.77197192,87.429,87.38,71.72690128]
[1770582875865,3.35079695,87.43,87.358,450.17018802]
[1770582875866,66.77197192,87.442,87.391,68.37610433]
[1770582877159,3.35079695,87.46,87.401,68.37610433]
[1770582877363,66.77197192,87.459,87.401,68.37610433]
[1770582888069,65.74562461,87.439,87.391,66.18641432]
[1770582890273,65.74562461,87.439,87.385,24.0]
[1770582890672,65.74562461,87.439,87.38,69.53640212]
[1770582890979,65.74562461,87.439,87.391,66.18641432]
[1770582891376,65.74562461,87.439,87.401,66.18641432]
[1770582893076,65.74562461,87.439,87.391,66.18641432]
[1770582900783,65.74562461,87.439,87.391,76.49191432]
[1770582901483,3.3499878,87.46,87.4,69.53640212]
[1770582901686,65.74562461,87.459,87.411,66.18641432]
[1770582902686,65.74562461,87.459,87.411,76.48941432]
[1770582903087,65.74562461,87.459,87.42,3.3499878]
[1770582903285,65.74562461,87.459,87.421,66.18641432]
[1770582903793,65.74562461,87.459,87.423,66.18641432]
[1770582904492,65.74562461,87.472,87.425,76.48781432]
[1770582904689,3.3499878,87.5,87.45,3.3499878]
[1770582905087,3.3499878,87.5,87.448,66.18641432]
[1770582906691,65.74562461,87.479,87.43,3.3499878]
[1770582906889,65.74562461,87.479,87.422,76.48821432]
[1770582907082,65.74562461,87.479,87.44,3.3499878]
[1770582907790,65.74562461,87.479,87.43,3.3499878]
[1770582907996,65.74562461,87.479,87.42,3.3499878]
[1770582908201,65.74562461,87.469,87.42,3.3499878]
[1770582908494,65.74562461,87.459,87.4,3.3499878]
[1770582908690,65.74562461,87.459,87.4,69.53640212]
[1770582910197,65.74562461,87.459,87.38,10.3068]
[1770582910198,65.74562461,87.459,87.411,66.18641432]
[1770582922715,79.49230222,87.457,87.411,66.18641432]
[1770582923819,69.19460222,87.429,87.383,95.13659666]
[1770582924018,20.5885,87.487,87.391,71.13659666]
[1770582924019,69.19460222,87.446,87.391,71.13659666]
[1770582924309,3.3499878,87.48,87.42,3.3499878]
[1770582924509,69.19460222,87.479,87.42,74.48658446]
[1770582925716,69.19460222,87.463,87.42,74.48658446]
[1770582926012,69.19460222,87.463,87.42,71.13659666]
[1770582926216,69.19460222,87.463,87.42,74.48658446]
[1770582926714,10.2979,87.456,87.42,74.48658446]
[1770582928118,10.2979,87.456,87.42,71.13659666]
[1770582933117,10.2979,87.456,87.42,74.48658446]
[1770582933712,10.2962,87.47,87.42,74.48658446]
[1770582934419,69.19460222,87.486,87.441,71.13659666]
[1770582934613,21.47252292,87.537,87.397,34.36]
[1770582934614,69.19460222,87.499,87.451,71.13659666]
[1770582937022,69.19460222,87.489,87.438,71.13659666]
[1770582937210,69.19460222,87.479,87.421,71.13659666]
[1770582939021,69.19460222,87.469,87.421,71.13659666]
[1770582940122,69.19460222,87.487,87.431,71.13659666]
[1770582940422,69.19460222,87.487,87.45,3.3499878]
[1770582940626,69.19460222,87.487,87.441,71.13659666]
[1770582940923,69.19460222,87.479,87.424,71.13659666]
[1770582941122,69.19460222,87.469,87.424,71.13659666]
[1770582943821,79.49110222,87.468,87.424,71.13659666]
[1770582944422,69.19460222,87.468,87.424,71.13659666]
[1770582945523,69.74197068,87.481,87.431,72.59984791]
[1770582956643,69.74197068,87.469,87.419,72.59984791]
[1770582960730,69.74197068,87.469,87.421,72.59984791]
[1770582960936,3.34881186,87.48,87.421,72.59984791]
[1770582961338,69.74197068,87.481,87.431,72.59984791]
[1770582962944,69.74197068,87.493,87.441,72.59984791]
[1770582963948,301.9331896,87.509,87.461,72.59984791]
[1770582964143,371.67516028,87.509,87.461,72.59984791]
[1770582964848,69.74197068,87.508,87.461,72.59984791]
[1770582965048,73.09078254,87.5,87.461,72.59984791]
[1770582967241,69.74197068,87.469,87.423,72.59984791]
[1770582967447,3.34881186,87.46,87.423,72.59984791]
[1770582968043,73.09078254,87.46,87.423,72.59984791]
[1770582968649,69.74197068,87.46,87.423,72.59984791]
[1770582971745,3.34881186,87.47,87.423,72.59984791]
[1770582972348,69.74197068,87.459,87.401,72.59984791]
[1770582975848,68.11580384,87.489,87.431,69.76693114]
[1770582977142,3.34881186,87.48,87.431,69.76693114]
[1770582980454,68.11580384,87.489,87.431,69.76693114]
[1770582983858,68.11580384,87.479,87.431,69.76693114]
[1770582984054,68.11580384,87.479,87.42,73.115743]
[1770582987660,68.11580384,87.479,87.431,69.76693114]
[1770583009587,68.11580384,87.479,87.441,66.83724443]
[1770583013200,66.92178058,87.474,87.431,66.83724443]
[1770583014701,10.2959,87.473,87.431,66.83724443]
[1770583016709,66.92178058,87.474,87.431,66.83724443]
[1770583020704,66.92178058,87.486,87.441,66.83724443]
[1770583023706,10.2932,87.496,87.441,66.83724443]
[1770583023915,66.92178058,87.499,87.461,66.83724443]
[1770583026407,3.34748234,87.52,87.467,66.83724443]
[1770583026598,66.92178058,87.509,87.456,66.83724443]
[1770583027204,66.92178058,87.509,87.461,66.83724443]
[1770583027407,3.34748234,87.52,87.48,70.18472677]
[1770583027408,66.92178058,87.52,87.48,70.18472677]
[1770583028613,66.92178058,87.539,87.48,70.18472677]
[1770583030913,13.63548234,87.54,87.48,66.83724443]
[1770583030914,66.92178058,87.529,87.48,66.83724443]
[1770583031211,66.92178058,87.519,87.469,66.83724443]
[1770583032313,66.92178058,87.519,87.471,66.83724443]
[1770583037117,10.66352502,87.552,87.425,24.0]
[1770583037118,72.41944175,87.509,87.426,68.04687922]
[1770583037316,72.41944175,87.509,87.451,68.04687922]
[1770583037615,72.41944175,87.509,87.452,68.04687922]
[1770583038518,72.41944175,87.509,87.461,68.04687922]
[1770583039014,72.41944175,87.52,87.471,68.04687922]
[1770583045217,10.66352502,87.56,87.471,68.04687922]
[1770583045218,72.41944175,87.531,87.471,68.04687922]
[1770583045518,72.41944175,87.529,87.471,68.04687922]
[1770583051619,3.34748234,87.53,87.471,68.04687922]
[1770583051620,72.41944175,87.527,87.471,68.04687922]
[1770583051821,72.41944175,87.499,87.46,68.04687922]
[1770583053528,72.41944175,87.499,87.442,68.04687922]
[1770583058620,82.71234175,87.499,87.442,68.04687922]